[Event "Late-Titled-Tuesday-Blitz-February-13-2024"]
[Site "Chess.com"]
[Date "2024.02.13"]
[Round "7"]
[White "FredddieCroderg"]
[Black "ural58"]
[Result "0-1"]
[WhiteElo "2279"]
[BlackElo "2508"]
[TimeControl "180+1"]
[EndTime "15:18:36 PST"]
[Termination "ural58 won on time"]

1. e4 {[%clk 0:02:54.2]} 1... d5 {[%clk 0:02:59.6]} 2. e5 {[%clk 0:02:53.3]}
2... c5 {[%clk 0:02:56.3]} 3. c3 {[%clk 0:02:53]} 3... Bf5 {[%clk 0:02:31.4]} 4.
d4 {[%clk 0:02:50.4]} 4... e6 {[%clk 0:02:31.5]} 5. Bd3 {[%clk 0:02:47.5]} 5...
Bxd3 {[%clk 0:02:24.6]} 6. Qxd3 {[%clk 0:02:47.2]} 6... Nc6 {[%clk 0:02:24.3]}
7. Ne2 {[%clk 0:02:45.6]} 7... Rc8 {[%clk 0:02:23.3]} 8. O-O {[%clk 0:02:39.6]}
8... cxd4 {[%clk 0:02:22.1]} 9. cxd4 {[%clk 0:02:36.5]} 9... Nb4 {[%clk
0:02:22]} 10. Qb5+ {[%clk 0:02:35.9]} 10... Qd7 {[%clk 0:02:22]} 11. Qxd7+
{[%clk 0:02:35.6]} 11... Kxd7 {[%clk 0:02:22.9]} 12. Nbc3 {[%clk 0:02:33.9]}
12... Ne7 {[%clk 0:02:11.4]} 13. Rd1 {[%clk 0:02:31.5]} 13... Nf5 {[%clk
0:02:09.6]} 14. Be3 {[%clk 0:02:25.9]} 14... Nxe3 {[%clk 0:02:07.6]} 15. fxe3
{[%clk 0:02:24.4]} 15... Nc2 {[%clk 0:02:08.2]} 16. Rab1 {[%clk 0:02:10.7]}
16... Nxe3 {[%clk 0:02:07.5]} 17. Rdc1 {[%clk 0:02:10.7]} 17... Bb4 {[%clk
0:02:03.1]} 18. a3 {[%clk 0:02:02.4]} 18... Bxc3 {[%clk 0:01:59.9]} 19. Nxc3
{[%clk 0:02:00.2]} 19... Nf5 {[%clk 0:01:54.6]} 20. Ne2 {[%clk 0:01:55.7]} 20...
Rxc1+ {[%clk 0:01:53.6]} 21. Rxc1 {[%clk 0:01:54.1]} 21... Rc8 {[%clk
0:01:54.2]} 22. Rxc8 {[%clk 0:01:53.7]} 22... Kxc8 {[%clk 0:01:54.4]} 23. Kf1
{[%clk 0:01:53.6]} 23... Ne3+ {[%clk 0:01:52.6]} 24. Kf2 {[%clk 0:01:50.5]}
24... Nd1+ {[%clk 0:01:52.4]} 25. Kf3 {[%clk 0:01:48.4]} 25... Nxb2 {[%clk
0:01:53.3]} 26. Nf4 {[%clk 0:01:48.1]} 26... g6 {[%clk 0:01:51.5]} 27. Nh3
{[%clk 0:01:48.1]} 27... h6 {[%clk 0:01:51.1]} 28. Nf2 {[%clk 0:01:46.4]} 28...
Nc4 {[%clk 0:01:50.8]} 29. Ng4 {[%clk 0:01:45.8]} 29... Nxa3 {[%clk 0:01:36.3]}
30. Nxh6 {[%clk 0:01:45.6]} 30... Nc2 {[%clk 0:01:36.3]} 31. Nxf7 {[%clk
0:01:43.6]} 31... Nxd4+ {[%clk 0:01:36.4]} 32. Ke3 {[%clk 0:01:36.9]} 32... Nf5+
{[%clk 0:01:35.8]} 33. Kd3 {[%clk 0:01:36.9]} 33... a5 {[%clk 0:01:32.3]} 34.
Nd6+ {[%clk 0:01:25.9]} 34... Nxd6 {[%clk 0:01:31.1]} 35. exd6 {[%clk
0:01:25.4]} 35... a4 {[%clk 0:01:29.7]} 36. h4 {[%clk 0:01:24.2]} 36... e5
{[%clk 0:01:25.9]} 37. g4 {[%clk 0:01:23.1]} 37... e4+ {[%clk 0:01:26.8]} 38.
Kc2 {[%clk 0:01:21.2]} 38... d4 {[%clk 0:01:10.6]} 39. h5 {[%clk 0:01:20.9]}
39... d3+ {[%clk 0:01:11.5]} 40. Kd2 {[%clk 0:01:15.2]} 40... gxh5 {[%clk
0:01:10.9]} 41. g5 {[%clk 0:01:04.8]} 41... a3 {[%clk 0:01:10.9]} 42. g6 {[%clk
0:01:04.8]} 42... a2 {[%clk 0:01:11.4]} 43. g7 {[%clk 0:01:04.8]} 43... a1=Q
{[%clk 0:01:11.5]} 44. g8=Q+ {[%clk 0:01:03.8]} 44... Kd7 {[%clk 0:01:12.1]} 45.
Qf7+ {[%clk 0:00:51.4]} 45... Kxd6 {[%clk 0:01:12.1]} 46. Qf8+ {[%clk
0:00:51.1]} 46... Kc7 {[%clk 0:01:07.3]} 47. Qe7+ {[%clk 0:00:47.5]} 47... Kb8
{[%clk 0:01:06.5]} 48. Qf8+ {[%clk 0:00:40.6]} 48... Ka7 {[%clk 0:01:06.3]} 49.
Qc5+ {[%clk 0:00:40.1]} 49... Ka6 {[%clk 0:01:06.2]} 50. Qc4+ {[%clk 0:00:35.8]}
50... Ka5 {[%clk 0:01:05.3]} 51. Qc5+ {[%clk 0:00:34.1]} 51... Ka6 {[%clk
0:00:58.7]} 52. Qc4+ {[%clk 0:00:33.4]} 52... Kb6 {[%clk 0:00:55]} 53. Qe6+
{[%clk 0:00:26.2]} 53... Kc5 {[%clk 0:00:53]} 54. Qe7+ {[%clk 0:00:24.5]} 54...
Kc4 {[%clk 0:00:46.4]} 55. Qe6+ {[%clk 0:00:19.3]} 55... Kb4 {[%clk 0:00:42.8]}
56. Qb6+ {[%clk 0:00:14.4]} 56... Ka3 {[%clk 0:00:42.1]} 57. Qa5+ {[%clk
0:00:09.7]} 57... Kb2 {[%clk 0:00:41.6]} 58. Qb4+ {[%clk 0:00:06]} 58... Ka2
{[%clk 0:00:41.3]} 59. Qa4+ {[%clk 0:00:05.3]} 59... Kb1 {[%clk 0:00:41.1]} 60.
Qd1+ {[%clk 0:00:04.3]} 60... Kb2 {[%clk 0:00:40.7]} 0-1

[Event "Late-Titled-Tuesday-Blitz-February-13-2024"]
[Site "Chess.com"]
[Date "2024.02.13"]
[Round "7"]
[White "BogdanDeac"]
[Black "Msb2"]
[Result "1-0"]
[WhiteElo "3027"]
[BlackElo "3013"]
[TimeControl "180+1"]
[EndTime "15:18:40 PST"]
[Termination "BogdanDeac won by checkmate"]

1. d4 {[%clk 0:03:00.9]} 1... d5 {[%clk 0:03:00.4]} 2. c4 {[%clk 0:03:00.7]}
2... e6 {[%clk 0:03:01.1]} 3. Nf3 {[%clk 0:03:01]} 3... Nf6 {[%clk 0:03:01]} 4.
Nc3 {[%clk 0:03:01.6]} 4... Bb4 {[%clk 0:03:01]} 5. e3 {[%clk 0:03:01]} 5... O-O
{[%clk 0:03:00.9]} 6. Bd3 {[%clk 0:03:01.6]} 6... dxc4 {[%clk 0:03:01.4]} 7.
Bxc4 {[%clk 0:03:01.5]} 7... c5 {[%clk 0:03:02.2]} 8. O-O {[%clk 0:03:01.5]}
8... a6 {[%clk 0:03:02.9]} 9. Bd3 {[%clk 0:02:55.9]} 9... b5 {[%clk 0:03:00.8]}
10. dxc5 {[%clk 0:02:55.2]} 10... Bxc5 {[%clk 0:02:43.4]} 11. e4 {[%clk
0:02:53]} 11... h6 {[%clk 0:02:20]} 12. e5 {[%clk 0:02:24]} 12... Nfd7 {[%clk
0:02:19.1]} 13. Be4 {[%clk 0:02:23.6]} 13... Ra7 {[%clk 0:02:18.9]} 14. Qe2
{[%clk 0:02:23.8]} 14... Bb7 {[%clk 0:02:16.4]} 15. Bxb7 {[%clk 0:02:14.4]}
15... Rxb7 {[%clk 0:02:17.3]} 16. Rd1 {[%clk 0:02:11.6]} 16... Nc6 {[%clk
0:02:07.5]} 17. Ne4 {[%clk 0:01:55.6]} 17... Be7 {[%clk 0:02:04.2]} 18. Bf4
{[%clk 0:01:13.8]} 18... Qa8 {[%clk 0:02:02.8]} 19. Nd6 {[%clk 0:01:10.6]} 19...
Rc7 {[%clk 0:01:59.6]} 20. Rac1 {[%clk 0:01:02]} 20... Nb6 {[%clk 0:01:55.4]}
21. Bxh6 {[%clk 0:00:17.5]} 21... gxh6 {[%clk 0:01:53.2]} 22. Qe3 {[%clk
0:00:17.8]} 22... Nd5 {[%clk 0:01:29.3]} 23. Qxh6 {[%clk 0:00:15.7]} 23... Nxe5
{[%clk 0:01:29.1]} 24. Nxe5 {[%clk 0:00:14.3]} 24... Rxc1 {[%clk 0:01:28.9]} 25.
Qxc1 {[%clk 0:00:10.6]} 25... Qb8 {[%clk 0:00:34.1]} 26. Qh6 {[%clk 0:00:07.2]}
26... Qxd6 {[%clk 0:00:27.8]} 27. Rd4 {[%clk 0:00:06.1]} 27... Qxe5 {[%clk
0:00:04.3]} 28. Rg4+ {[%clk 0:00:05.8]} 28... Bg5 {[%clk 0:00:05.1]} 29. Rxg5+
{[%clk 0:00:06.2]} 29... Qxg5 {[%clk 0:00:05.8]} 30. Qxg5+ {[%clk 0:00:07.1]}
30... Kh8 {[%clk 0:00:06.7]} 31. h4 {[%clk 0:00:07.4]} 31... Kh7 {[%clk
0:00:03.6]} 32. Qh5+ {[%clk 0:00:07.3]} 32... Kg7 {[%clk 0:00:03.9]} 33. Qg5+
{[%clk 0:00:07.7]} 33... Kh7 {[%clk 0:00:04.5]} 34. h5 {[%clk 0:00:08.1]} 34...
Rg8 {[%clk 0:00:05.1]} 35. Qe5 {[%clk 0:00:07.5]} 35... Rg7 {[%clk 0:00:04.7]}
36. Qd6 {[%clk 0:00:07.4]} 36... Kh6 {[%clk 0:00:04.7]} 37. Qxa6 {[%clk
0:00:07.1]} 37... Nf4 {[%clk 0:00:05.3]} 38. g3 {[%clk 0:00:07.2]} 38... Ne2+
{[%clk 0:00:03.7]} 39. Kf1 {[%clk 0:00:07.1]} 39... Nd4 {[%clk 0:00:04.6]} 40.
Qd6 {[%clk 0:00:06.9]} 40... Nf5 {[%clk 0:00:05.1]} 41. Qe5 {[%clk 0:00:06.8]}
41... Kxh5 {[%clk 0:00:04.4]} 42. Qxb5 {[%clk 0:00:06.8]} 42... Rg5 {[%clk
0:00:05.1]} 43. Qd3 {[%clk 0:00:06.5]} 43... Kh6 {[%clk 0:00:03.7]} 44. a4
{[%clk 0:00:06.6]} 44... Rg8 {[%clk 0:00:03.6]} 45. a5 {[%clk 0:00:06.6]} 45...
Rb8 {[%clk 0:00:03.4]} 46. b3 {[%clk 0:00:06.9]} 46... Rc8 {[%clk 0:00:03]} 47.
Kg2 {[%clk 0:00:05.3]} 47... Rc1 {[%clk 0:00:03.3]} 48. Qd2+ {[%clk 0:00:05.5]}
48... Kg6 {[%clk 0:00:01.9]} 49. Qxc1 {[%clk 0:00:06.1]} 49... Ng7 {[%clk
0:00:02.8]} 50. b4 {[%clk 0:00:06.4]} 50... Kf6 {[%clk 0:00:03.7]} 51. b5 {[%clk
0:00:06.8]} 51... Ke7 {[%clk 0:00:04.2]} 52. b6 {[%clk 0:00:07.1]} 52... Nf5
{[%clk 0:00:05.1]} 53. a6 {[%clk 0:00:07.6]} 53... e5 {[%clk 0:00:06]} 54. a7
{[%clk 0:00:08]} 54... Ke6 {[%clk 0:00:06.9]} 55. a8=Q {[%clk 0:00:08.4]} 55...
Kf6 {[%clk 0:00:07.8]} 56. Qac8 {[%clk 0:00:08.7]} 56... Ne3+ {[%clk 0:00:08.7]}
57. Qxe3 {[%clk 0:00:08.4]} 57... Kg7 {[%clk 0:00:09.6]} 58. Qg5+ {[%clk
0:00:08.1]} 58... Kh7 {[%clk 0:00:09.5]} 59. Qcg8# {[%clk 0:00:08.8]} 1-0

[Event "Late-Titled-Tuesday-Blitz-February-13-2024"]
[Site "Chess.com"]
[Date "2024.02.13"]
[Round "7"]
[White "Hrant_ChessMood"]
[Black "saikrishnaReturns"]
[Result "1-0"]
[WhiteElo "2952"]
[BlackElo "2784"]
[TimeControl "180+1"]
[EndTime "15:18:41 PST"]
[Termination "Hrant_ChessMood won by checkmate"]

1. Nf3 {[%clk 0:02:58.9]} 1... Nf6 {[%clk 0:02:59.8]} 2. c4 {[%clk 0:02:59.1]}
2... g6 {[%clk 0:03:00.7]} 3. Nc3 {[%clk 0:02:58.9]} 3... Bg7 {[%clk 0:03:01.6]}
4. e4 {[%clk 0:02:58.9]} 4... d6 {[%clk 0:03:02.2]} 5. d4 {[%clk 0:02:59.1]}
5... O-O {[%clk 0:03:02.6]} 6. Be2 {[%clk 0:02:58.1]} 6... e5 {[%clk 0:03:02.6]}
7. O-O {[%clk 0:02:58.4]} 7... Nc6 {[%clk 0:03:02.8]} 8. d5 {[%clk 0:02:57.4]}
8... Ne7 {[%clk 0:03:02.8]} 9. Kh1 {[%clk 0:02:58.1]} 9... Ne8 {[%clk
0:02:47.7]} 10. b4 {[%clk 0:02:52.1]} 10... h6 {[%clk 0:02:46.5]} 11. c5 {[%clk
0:02:52]} 11... f5 {[%clk 0:02:46.5]} 12. Ba3 {[%clk 0:02:48.2]} 12... f4 {[%clk
0:02:44]} 13. Nd2 {[%clk 0:02:47.2]} 13... h5 {[%clk 0:02:26.2]} 14. Nc4 {[%clk
0:02:47.3]} 14... Rf7 {[%clk 0:02:21.6]} 15. Rc1 {[%clk 0:02:46.5]} 15... Bf8
{[%clk 0:02:20.8]} 16. b5 {[%clk 0:02:41.5]} 16... b6 {[%clk 0:01:38]} 17. cxd6
{[%clk 0:02:37.8]} 17... cxd6 {[%clk 0:01:38.9]} 18. Nb1 {[%clk 0:02:14.5]}
18... Rh7 {[%clk 0:01:34]} 19. Ncd2 {[%clk 0:02:09.7]} 19... g5 {[%clk
0:01:29.9]} 20. Rc6 {[%clk 0:02:03.3]} 20... g4 {[%clk 0:01:23.7]} 21. Nc4
{[%clk 0:02:02.2]} 21... Ng6 {[%clk 0:01:16.4]} 22. Qb3 {[%clk 0:01:31.1]} 22...
f3 {[%clk 0:01:09.6]} 23. gxf3 {[%clk 0:01:28.3]} 23... Nf4 {[%clk 0:01:09.6]}
24. Nxe5 {[%clk 0:00:46.6]} 24... Nxe2 {[%clk 0:01:01]} 25. Qe3 {[%clk
0:00:40.5]} 25... Nd4 {[%clk 0:00:41.9]} 26. Qxd4 {[%clk 0:00:36.7]} 26... dxe5
{[%clk 0:00:42.1]} 27. Qxe5 {[%clk 0:00:36]} 27... Bxa3 {[%clk 0:00:41.7]} 28.
Nxa3 {[%clk 0:00:35.3]} 28... gxf3 {[%clk 0:00:35.3]} 29. Rg1+ {[%clk
0:00:34.9]} 29... Bg4 {[%clk 0:00:33.4]} 30. h3 {[%clk 0:00:22.6]} 30... Qh4
{[%clk 0:00:25.2]} 31. Qg3 {[%clk 0:00:22.9]} 31... Qe7 {[%clk 0:00:24.1]} 32.
Nc2 {[%clk 0:00:17.5]} 32... Qxe4 {[%clk 0:00:22.3]} 33. Ne3 {[%clk 0:00:18]}
33... Kh8 {[%clk 0:00:18.5]} 34. Rc4 {[%clk 0:00:13.6]} 34... Qe7 {[%clk
0:00:15.8]} 35. Rgc1 {[%clk 0:00:11.9]} 35... Rd8 {[%clk 0:00:14.2]} 36. hxg4
{[%clk 0:00:11]} 36... hxg4+ {[%clk 0:00:14.1]} 37. Kg1 {[%clk 0:00:11.7]} 37...
Nf6 {[%clk 0:00:12.6]} 38. Rc7 {[%clk 0:00:09.9]} 38... Qe4 {[%clk 0:00:10.9]}
39. Rxh7+ {[%clk 0:00:09.3]} 39... Qxh7 {[%clk 0:00:11.7]} 40. Qe5 {[%clk
0:00:07.1]} 40... Qg7 {[%clk 0:00:10.4]} 41. Nf5 {[%clk 0:00:06.5]} 41... Qg5
{[%clk 0:00:08.7]} 42. Rc6 {[%clk 0:00:05.5]} 42... Rf8 {[%clk 0:00:06.3]} 43.
d6 {[%clk 0:00:03.6]} 43... Kg8 {[%clk 0:00:05.4]} 44. Ne7+ {[%clk 0:00:03.4]}
44... Kf7 {[%clk 0:00:05.5]} 45. Qxg5 {[%clk 0:00:03.5]} 45... Rh8 {[%clk
0:00:04.9]} 46. d7 {[%clk 0:00:03.5]} 46... Nxd7 {[%clk 0:00:05.1]} 47. Qg6+
{[%clk 0:00:03.5]} 47... Kxe7 {[%clk 0:00:05.6]} 48. Qg7+ {[%clk 0:00:03.3]}
48... Kd8 {[%clk 0:00:04.5]} 49. Qxh8+ {[%clk 0:00:04.2]} 49... Ke7 {[%clk
0:00:05.1]} 50. Qg7+ {[%clk 0:00:04.8]} 50... Ke8 {[%clk 0:00:05.5]} 51. Re6+
{[%clk 0:00:05]} 51... Kd8 {[%clk 0:00:05.8]} 52. Rd6 {[%clk 0:00:05.9]} 52...
Ke8 {[%clk 0:00:05.8]} 53. Qxd7+ {[%clk 0:00:06.8]} 53... Kf8 {[%clk 0:00:05.8]}
54. Rc6 {[%clk 0:00:06.5]} 54... Kg8 {[%clk 0:00:06]} 55. Rc8# {[%clk
0:00:07.4]} 1-0

[Event "Late-Titled-Tuesday-Blitz-February-13-2024"]
[Site "Chess.com"]
[Date "2024.02.13"]
[Round "7"]
[White "szachmistrz2500"]
[Black "Teidi96"]
[Result "1-0"]
[WhiteElo "2451"]
[BlackElo "2277"]
[TimeControl "180+1"]
[EndTime "15:18:42 PST"]
[Termination "szachmistrz2500 won on time"]

1. e4 {[%clk 0:02:54.3]} 1... c5 {[%clk 0:02:59.4]} 2. Nf3 {[%clk 0:02:54.4]}
2... g6 {[%clk 0:02:59.8]} 3. c4 {[%clk 0:02:53.6]} 3... Nc6 {[%clk 0:02:59.7]}
4. d4 {[%clk 0:02:53.5]} 4... cxd4 {[%clk 0:03:00.6]} 5. Nxd4 {[%clk 0:02:54.1]}
5... Bg7 {[%clk 0:03:01.5]} 6. Be3 {[%clk 0:02:51.7]} 6... Nf6 {[%clk
0:03:01.9]} 7. Nc3 {[%clk 0:02:51.4]} 7... O-O {[%clk 0:03:02.3]} 8. Nc2 {[%clk
0:02:49.9]} 8... d6 {[%clk 0:03:02.2]} 9. Be2 {[%clk 0:02:49.7]} 9... Be6 {[%clk
0:03:00.9]} 10. Qd2 {[%clk 0:02:49.6]} 10... Rc8 {[%clk 0:03:00.9]} 11. Rc1
{[%clk 0:02:43.8]} 11... Ne5 {[%clk 0:03:00.7]} 12. b3 {[%clk 0:02:43.7]} 12...
a6 {[%clk 0:03:00]} 13. O-O {[%clk 0:02:40.5]} 13... Qa5 {[%clk 0:03:00.6]} 14.
Rfd1 {[%clk 0:02:36.7]} 14... Rfe8 {[%clk 0:02:59.6]} 15. f3 {[%clk 0:02:34.5]}
15... Nfd7 {[%clk 0:02:54.9]} 16. Nd4 {[%clk 0:02:30.7]} 16... Nc6 {[%clk
0:02:45.1]} 17. Nxe6 {[%clk 0:02:29.9]} 17... fxe6 {[%clk 0:02:46]} 18. f4
{[%clk 0:02:25.2]} 18... Nf8 {[%clk 0:02:30.6]} 19. Bg4 {[%clk 0:02:22.8]} 19...
Rcd8 {[%clk 0:02:24]} 20. Rf1 {[%clk 0:01:59.8]} 20... b5 {[%clk 0:01:59.9]} 21.
cxb5 {[%clk 0:01:49.8]} 21... axb5 {[%clk 0:02:00.8]} 22. Be2 {[%clk 0:01:44.4]}
22... b4 {[%clk 0:01:52.8]} 23. Na4 {[%clk 0:01:34.4]} 23... Rc8 {[%clk
0:01:48.7]} 24. Bb6 {[%clk 0:01:28.7]} 24... Qa8 {[%clk 0:01:47.2]} 25. Bb5
{[%clk 0:01:25.2]} 25... Nd7 {[%clk 0:01:37.5]} 26. Be3 {[%clk 0:01:24.2]} 26...
Qb7 {[%clk 0:01:18]} 27. Bc4 {[%clk 0:01:11]} 27... Nf8 {[%clk 0:01:09.1]} 28.
Rc2 {[%clk 0:01:08.5]} 28... Red8 {[%clk 0:00:59.9]} 29. Rfc1 {[%clk 0:01:06.8]}
29... Na5 {[%clk 0:00:49.3]} 30. Bd3 {[%clk 0:01:00.1]} 30... Rxc2 {[%clk
0:00:48.9]} 31. Qxc2 {[%clk 0:01:00.3]} 31... Nd7 {[%clk 0:00:37.7]} 32. Qc7
{[%clk 0:00:48.6]} 32... Kf8 {[%clk 0:00:13.9]} 33. h3 {[%clk 0:00:37.1]} 33...
Ke8 {[%clk 0:00:10.9]} 34. Kf2 {[%clk 0:00:35.1]} 34... Bf6 {[%clk 0:00:10.1]}
35. g4 {[%clk 0:00:33.9]} 35... Bh4+ {[%clk 0:00:09.9]} 36. Kf3 {[%clk
0:00:33.6]} 36... Bf6 {[%clk 0:00:10.8]} 37. g5 {[%clk 0:00:33.2]} 37... Bg7
{[%clk 0:00:10.8]} 38. h4 {[%clk 0:00:32.9]} 38... Rb8 {[%clk 0:00:10.4]} 39.
Qxb7 {[%clk 0:00:31.4]} 39... Nxb7 {[%clk 0:00:09.4]} 40. h5 {[%clk 0:00:27.1]}
40... Kd8 {[%clk 0:00:09.3]} 41. hxg6 {[%clk 0:00:26.6]} 41... hxg6 {[%clk
0:00:09.6]} 42. Rh1 {[%clk 0:00:26.3]} 42... Nf8 {[%clk 0:00:09.4]} 43. Bb6+
{[%clk 0:00:17.2]} 43... Ke8 {[%clk 0:00:08.9]} 44. Bb5+ {[%clk 0:00:16.8]}
44... Kf7 {[%clk 0:00:09.3]} 45. Rc1 {[%clk 0:00:16.1]} 45... Nc5 {[%clk
0:00:07.2]} 46. Bxc5 {[%clk 0:00:09.9]} 46... dxc5 {[%clk 0:00:06.9]} 47. Rxc5
{[%clk 0:00:08.6]} 47... Rd8 {[%clk 0:00:05.5]} 48. Bc4 {[%clk 0:00:08]} 48...
Rd2 {[%clk 0:00:04.9]} 49. Nb6 {[%clk 0:00:06.5]} 49... Rxa2 {[%clk 0:00:04.6]}
50. Rc7 {[%clk 0:00:06.7]} 50... Rb2 {[%clk 0:00:03]} 51. Nc8 {[%clk 0:00:06.4]}
51... Bd4 {[%clk 0:00:01.8]} 52. Rxe7+ {[%clk 0:00:06.3]} 52... Kg8 {[%clk
0:00:01.8]} 53. Nd6 {[%clk 0:00:06.1]} 1-0

[Event "Late-Titled-Tuesday-Blitz-February-13-2024"]
[Site "Chess.com"]
[Date "2024.02.13"]
[Round "7"]
[White "Jahonas"]
[Black "IMRosen"]
[Result "0-1"]
[WhiteElo "2392"]
[BlackElo "2631"]
[TimeControl "180+1"]
[EndTime "15:18:44 PST"]
[Termination "IMRosen won by resignation"]

1. d4 {[%clk 0:03:00.9]} 1... d5 {[%clk 0:02:54.4]} 2. c4 {[%clk 0:03:00.9]}
2... e6 {[%clk 0:02:49.9]} 3. cxd5 {[%clk 0:03:00.4]} 3... exd5 {[%clk
0:02:50.2]} 4. Nc3 {[%clk 0:03:00.9]} 4... c6 {[%clk 0:02:50.9]} 5. Nf3 {[%clk
0:03:00.7]} 5... Nf6 {[%clk 0:02:51.4]} 6. Bf4 {[%clk 0:03:00.3]} 6... Bf5
{[%clk 0:02:50]} 7. e3 {[%clk 0:03:00.1]} 7... Bd6 {[%clk 0:02:50.5]} 8. Bxd6
{[%clk 0:02:59.5]} 8... Qxd6 {[%clk 0:02:51.4]} 9. Bd3 {[%clk 0:02:59.7]} 9...
Bg6 {[%clk 0:02:51.8]} 10. h3 {[%clk 0:02:58.9]} 10... Nbd7 {[%clk 0:02:51]} 11.
O-O {[%clk 0:02:58.6]} 11... O-O {[%clk 0:02:50.2]} 12. a3 {[%clk 0:02:53.5]}
12... Ne4 {[%clk 0:02:46.5]} 13. Bxe4 {[%clk 0:02:44.3]} 13... dxe4 {[%clk
0:02:44.9]} 14. Nh4 {[%clk 0:02:43.3]} 14... Qe7 {[%clk 0:02:26]} 15. Qg4 {[%clk
0:02:19.7]} 15... Nf6 {[%clk 0:02:24.7]} 16. Nxg6 {[%clk 0:02:14.4]} 16... hxg6
{[%clk 0:02:21.5]} 17. Qg5 {[%clk 0:02:12.7]} 17... Rad8 {[%clk 0:02:10.5]} 18.
b4 {[%clk 0:02:09.1]} 18... Qe6 {[%clk 0:02:08.1]} 19. Rfc1 {[%clk 0:01:54.4]}
19... Nd5 {[%clk 0:02:06.4]} 20. Qg3 {[%clk 0:01:38.4]} 20... f5 {[%clk
0:01:59]} 21. Nxd5 {[%clk 0:01:37.5]} 21... Rxd5 {[%clk 0:01:52.5]} 22. Rc5
{[%clk 0:01:35.1]} 22... Rd7 {[%clk 0:01:22.6]} 23. Re5 {[%clk 0:01:16.8]} 23...
Qf6 {[%clk 0:01:20.3]} 24. f4 {[%clk 0:01:08.2]} 24... exf3 {[%clk 0:01:16.4]}
25. Qxf3 {[%clk 0:01:07]} 25... f4 {[%clk 0:01:04.7]} 26. Re1 {[%clk 0:00:41.1]}
26... fxe3 {[%clk 0:01:00.3]} 27. Qxe3 {[%clk 0:00:40.6]} 27... Qf4 {[%clk
0:00:59.2]} 28. Qxf4 {[%clk 0:00:36.2]} 28... Rxf4 {[%clk 0:01:00.1]} 29. Re7
{[%clk 0:00:35.4]} 29... Rfxd4 {[%clk 0:00:57.9]} 30. R1e4 {[%clk 0:00:32.2]}
30... Kf8 {[%clk 0:00:47.3]} 31. Re8+ {[%clk 0:00:31.4]} 31... Kf7 {[%clk
0:00:47.5]} 32. Rxd4 {[%clk 0:00:28.8]} 32... Rxd4 {[%clk 0:00:47.2]} 33. Rb8
{[%clk 0:00:28.4]} 33... Rd7 {[%clk 0:00:47.5]} 34. Kf2 {[%clk 0:00:27.9]} 34...
Ke6 {[%clk 0:00:47.6]} 35. Ke3 {[%clk 0:00:28.3]} 35... Kd5 {[%clk 0:00:44.3]}
36. Kd3 {[%clk 0:00:27.9]} 36... c5 {[%clk 0:00:41.5]} 37. bxc5 {[%clk
0:00:27.4]} 37... Kxc5+ {[%clk 0:00:42.4]} 38. Kc3 {[%clk 0:00:25.9]} 38... Kb5
{[%clk 0:00:40]} 39. h4 {[%clk 0:00:20]} 39... Ka4 {[%clk 0:00:34.5]} 40. Kb2
{[%clk 0:00:18.2]} 40... b6 {[%clk 0:00:26.8]} 41. Ra8 {[%clk 0:00:18.1]} 41...
a5 {[%clk 0:00:24.5]} 42. Rg8 {[%clk 0:00:17.6]} 42... Rd2+ {[%clk 0:00:23.2]}
43. Kc3 {[%clk 0:00:17.4]} 43... Rxg2 {[%clk 0:00:23.4]} 44. Rxg7 {[%clk
0:00:17.8]} 44... Rg3+ {[%clk 0:00:22.1]} 45. Kb2 {[%clk 0:00:17.2]} 45... Rg2+
{[%clk 0:00:14.8]} 46. Kc3 {[%clk 0:00:16.7]} 46... b5 {[%clk 0:00:14]} 47. h5
{[%clk 0:00:16.3]} 47... g5 {[%clk 0:00:10.5]} 48. h6 {[%clk 0:00:15.5]} 48...
Rh2 {[%clk 0:00:09.7]} 49. h7 {[%clk 0:00:09.4]} 49... Kxa3 {[%clk 0:00:06.5]}
50. Rxg5 {[%clk 0:00:09]} 50... Ka4 {[%clk 0:00:06]} 51. Rg7 {[%clk 0:00:08.4]}
51... b4+ {[%clk 0:00:06.1]} 52. Kc4 {[%clk 0:00:08.8]} 52... Rh5 {[%clk
0:00:04.4]} 53. Rb7 {[%clk 0:00:08.7]} 53... Ka3 {[%clk 0:00:03.4]} 54. Rb5
{[%clk 0:00:07.9]} 54... Rh4+ {[%clk 0:00:02.9]} 55. Kd3 {[%clk 0:00:08.1]}
55... Rxh7 {[%clk 0:00:02.9]} 56. Rxa5+ {[%clk 0:00:08.2]} 56... Kb3 {[%clk
0:00:03.6]} 57. Rb5 {[%clk 0:00:07.5]} 57... Rd7+ {[%clk 0:00:04]} 58. Ke2
{[%clk 0:00:07.6]} 58... Kc2 {[%clk 0:00:04.5]} 59. Rd5 {[%clk 0:00:07.1]} 59...
Rxd5 {[%clk 0:00:04.4]} 0-1